Workbook

Sheet Tabelle1
B1: Quelle der Formeln: wikipedia.org/wiki/Great-circle_navigation | M1: Ingo Mennerich, Januar 2019
M2: VBA-Code: Philipp Eisenbarth
B3: Wohin, bitte, geht´s nach Neuseeland? | K3: Geographische Breite (j) | M3: Südliche Breite negativ!
B4: Großkreisnavigation, Orthodrome = kürzester Weg auf dem Globus | K4: GeographischeLänge (l) | M4: Länge westlich Greenwich negativ!
E5: mit Spur
B6: Start | E6: ohne Spur | G6: Nach (km) | I6: d (km)= | J6: =K29 -> 17971.29043 | L6: Kompasskurs | N6: Start (°) | O6: =E62 -> 41.76225866
D7: https://en.wikipedia.org/wiki/Equirectangular_projection | L7: https://commons.wikimedia.org/wiki/File:Kompassrose.svg
B8: j1 (°) | C8: 50
B10: l1 (°) | C10: 10
B12: Ziel
B14: j2 (°) | C14: -35
B16: l2 (°) | C16: 175
B18: Dl (°) | C18: =C42 -> 165
B20: Midpoint
B22: j= | C22: =E152 -> 36.63594127
B24: l= | C24: =E169 -> 135
N25: j= | O25: =C28 -> 50
B26: nach km: | C26: =H6 -> 0
N27: l= | O27: =I36 -> 10
B28: j= | C28: =E187 -> 50 | I28: Zentriwinkel (°) | K28: =E86 -> 161.4388353
I29: Distanz Start-Ziel (km) | K29: =(K28/360)*K30 -> 17971.29043 | N29: Kurs (°) | O29: =E214 -> 41.76225866
B30: l= | C30: =E200 -> 10 | I30: U Äquator (km) | K30: 40075.02
B34: l1 + 360 = | C34: =C10+360 -> 370 | F34: Karte
F35: Start | G35: Ziel | H35: Midpoint | I35: l / j | L35: Plot 1 | M35: Plot 2 | N35: Plot 3 | O35: Plot 4 | P35: Plot 5 | Q35: Plot 6 | R35: Plot 7 | S35: Plot 8 | T35: Plot 9 | U35: Plot 10 | V35: Plot 11 | W35: Plot 12 | X35: Plot 13 | Y35: Plot 14 | Z35: Plot 15 | AA35: Plot 16 | AB35: Plot 17 | AC35: Plot 18 | AD35: Plot 19 | AE35: Plot 20 | AF35: Plot 21 | AG35: Plot 22 | AH35: Plot 23 | AI35: Plot 24 | AJ35: Plot 25 | AK35: Plot 26 | AL35: Plot 27 | AM35: Plot 28 | AN35: Plot 29 | AO35: Plot 30 | AP35: Plot 31 | AQ35: Plot 32 | AR35: Plot 33 | AS35: Plot 34 | AT35: Plot 35 | AU35: Plot 36 | AV35: Plot 37 | AW35: Plot 38 | AX35: Plot 39 | AY35: Plot 40 | AZ35: Plot 41 | BA35: Plot 42 | BB35: Plot 43 | BC35: Plot 44 | BD35: Plot 45 | BE35: Plot 46 | BF35: Plot 47 | BG35: Plot 48 | BH35: Plot 49 | BI35: Plot 50 | BJ35: Plot 51 | BK35: Plot 52 | BL35: Plot 53 | BM35: Plot 54 | BN35: Plot 55 | BO35: Plot 56 | BP35: Plot 57 | BQ35: Plot 58 | BR35: Plot 59 | BS35: Plot 60 | BT35: Plot 61 | BU35: Plot 62 | BV35: Plot 63 | BW35: Plot 64 | BX35: Plot 65 | BY35: Plot 66 | BZ35: Plot 67 | CA35: Plot 68 | CB35: Plot 69 | CC35: Plot 70 | CD35: Plot 71 | CE35: Plot 72 | CF35: Plot 73 | CG35: Plot 74 | CH35: Plot 75 | CI35: Plot 76 | CJ35: Plot 77 | CK35: Plot 78 | CL35: Plot 79 | CM35: Plot 80 | CN35: Plot 81 | CO35: Plot 82 | CP35: Plot 83 | CQ35: Plot 84 | CR35: Plot 85 | CS35: Plot 86 | CT35: Plot 87 | CU35: Plot 88 | CV35: Plot 89 | CW35: Plot 90 | CX35: Plot 91 | CY35: Plot 92 | CZ35: Plot 93 | DA35: Plot 94 | DB35: Plot 95 | DC35: Plot 96 | DD35: Plot 97 | DE35: Plot 98 | DF35: Plot 99 | DG35: Plot 100 | DH35: Plot 101 | DI35: Plot 102 | DJ35: Plot 103
B36: l2 + 360 = | C36: =C16+360 -> 535 | F36: =C10 -> 10 | G36: =C16 -> 175 | H36: =E169 -> 135 | I36: =IF(AND(G198>180),G198-360,(IF(AND(G198<-180),G198+360,G198))) -> 10 | K36: l
F37: =C8 -> 50 | G37: =C14 -> -35 | H37: =C22 -> 36.63594127 | I37: =C28 -> 50 | K37: j
B38: Dl | C38: =IF(C36>C34,C36-C34,-(C34-C36-360)) -> 165 | D38: ° nach Osten
F39: Kompass
B40: Dl | C40: =C38-360 -> -195 | D40: ° nach Westen | F40: Distanz X | G40: =H6 -> 0 | H40: Distanz A-B | I40: =K29 -> 17971.29043
F41: 360 | G41: =O29 -> 41.76225866 | H41: =F41*SIN(RADIANS(G41)) -> 239.7748582 | I41: =F41*SIN(RADIANS(90-G41)) -> 268.5293604
B42: Differenz | C42: =IF(C40*-1<C38,C40,C38) -> 165 | H42: =F42*SIN(RADIANS(90-G42)) -> 0 | I42: =F42*SIN(RADIANS(G42)) -> 0
C45: (Zentri)Winkel zwischen P1 und P2
C47: cosg = | E47: =SIN(RADIANS(C8))*SIN(RADIANS(C14))+COS(RADIANS(C8))*COS(RADIANS(C14))*COS(RADIANS(C16-C10)) -> -0.9479843841 | G47: cosg = sind1 * sind2 + cosd1 * cosd2 * cosDa
C49: g = | E49: =DEGREES(ACOS(E47)) -> 161.4388353 | F49: Grad (Zentriwinkel)
C52: Kurswinkel a1 und a2 in P1 und P2
C55: Zähler | D55: =COS(RADIANS(C14))*SIN(RADIANS(C18)) -> 0.2120121499
C56: Nenner | D56: =COS(RADIANS(C8))*SIN(RADIANS(C14))-SIN(RADIANS(C8))*COS(RADIANS(C14))*COS(RADIANS(C18)) -> 0.237437267
D58: =D55/D56 -> 0.8929185912
D60: =DEGREES(ATAN(D58)) -> 41.76225866
L61: Figure 1. The great circle path between (φ1, λ1) and (φ2, λ2).
D62: a1 | E62: =IF(AND(D55<0,D58>0),D60-180,(IF(AND(D55>0,D58<0),D60+180,(IF(AND(D55<0,D58<0),D60,D60))))) -> 41.76225866 | L62: Aus Wikipedia, Great Circle Navigation
F63: Auf Quadranten achten!!!!
D66: Zähler | E66: =COS(RADIANS(C8))*SIN(RADIANS(C18)) -> 0.1663656753
D67: Nenner | E67: =-(COS(RADIANS(C14))*SIN(RADIANS(C8))-(SIN(RADIANS(C14))*COS(RADIANS(C8))*COS(RADIANS(C18)))) -> -0.2713817781
E69: =E66/E67 -> -0.6130318567
E71: =DEGREES(ATAN(E69)) -> -31.50962389
D73: a2 | E73: =IF(AND(E66<0,E69>0),E71-180,(IF(AND(E66>0,E69<0),E71+180,(IF(AND(E66<0,E69<0),E71,E71))))) -> 148.4903761
C76: Zentriwinkel (s12) zwischen P1 und P2
C78: Sigma (s12)
D79: ZÄHLER | E79: =SQRT((COS(RADIANS(C8))*SIN(RADIANS(C14))-SIN(RADIANS(C8))*COS(RADIANS(C14))*COS(RADIANS(C18)))^2+(COS(RADIANS(C14))*SIN(RADIANS(C18)))^2) -> 0.318316835
D80: NENNER | E80: =SIN(RADIANS(C8))*SIN(RADIANS(C14))+COS(RADIANS(C8))*COS(RADIANS(C14))*COS(RADIANS(C18)) -> -0.9479843841
E82: =E79/E80 -> -0.3357827833
C84: Sigma (s) | D84: s12= | E84: =DEGREES(ATAN(E82)) -> -18.5611647
E86: =IF(AND(E79<0,E82>0),E84-180,(IF(AND(E79>0,E82<0),E84+180,(IF(AND(E79<0,E82<0),E84,E84))))) -> 161.4388353
C91: Kurswinkel a0 im Knoten (Äquator)
D93: ZÄHLER | E93: =SIN(RADIANS(E62))*COS(RADIANS(C8)) -> 0.4281230776
D94: NENNER | E94: =SQRT(COS(RADIANS(E62))^2+SIN(RADIANS(E62))^2*SIN(RADIANS(C8))^2) -> 0.9037204382
D96: QUOTIENT | E96: =E93/E94 -> 0.4737339774
D98: ARCTAN | E98: =DEGREES(ATAN(E96)) -> 25.34850478
D100: a0 | E100: =IF(AND(E93<0,E96>0),E98-180,(IF(AND(E93>0,E96<0),E98+180,(IF(AND(E93<0,E96<0),E98,E98))))) -> 25.34850478
C104: Zentriwinkel s01 zwischen A und P1 und Zentriwinkel s02 zwischen P1 und P2
C106: Sigma (s)
D107: ZÄHLER | E107: =TAN(RADIANS(C8)) -> 1.191753593
D108: NENNER | E108: =COS(RADIANS(E62)) -> 0.74591489
D110: QUOTIENT | E110: =E107/E108 -> 1.597707203
D112: ARCTAN | E112: =DEGREES(ATAN(E110)) -> 57.95767772
D114: s01= | E114: =IF(AND(E107<0,E110>0),E112-180,(IF(AND(E107>0,E110<0),E112+180,(IF(AND(E107<0,E110<0),E112,E112))))) -> 57.95767772
C117: Sigma (s) | D117: s02= | E117: =E114+E86 -> 219.396513
C122: Die geographische Länge des Knotens (Überquerung des Äquators)
D124: ZÄHLER | E124: =SIN(RADIANS(E98))*SIN(RADIANS(E114)) -> 0.3629012809
D125: NENNER | E125: =COS(RADIANS(E114)) -> 0.5305455414
D127: QUOTIENT | E127: =E124/E125 -> 0.6840153249
D129: ARCTAN | E129: =DEGREES(ATAN(E124/E125)) -> 34.3727261
D131: l01 | E131: =IF(AND(E124<0,E127>0),E129-180,(IF(AND(E124>0,E127<0),E129+180,(IF(AND(E124<0,E127<0),E129,E129))))) -> 34.3727261
D135: l0 | E135: =C10-E131 -> -24.3727261 | L135: Figure 2. The great circle path between a node (an equator crossing) and an arbitrary point (φ,λ).
L136: Aus Wikipedia: Great Circle Navigation
C140: Um den Mittelpunkt der Route zu berechnen setze σ = ½(σ1 + σ2)
D142: Sigma (s) | E142: =0.5*(E114+E117) -> 138.6770954
C144: Breite und Länge des Mittelpunkts
D147: ZÄHLER | E147: =COS(RADIANS(E98))*SIN(RADIANS(E142)) -> 0.5967283598
D148: NENNER | E148: =SQRT(COS(RADIANS(E142))^2+SIN(RADIANS(E98))^2*SIN(RADIANS(E142))^2) -> 0.8024433093
D150: QUOTIENT | E150: =E147/E148 -> 0.7436392739
D152: ARCTAN | E152: =DEGREES(ATAN(E150)) -> 36.63594127
D154: j= | E154: =IF(AND(E147<0,E150>0),E152-180,(IF(AND(E147>0,E150<0),E152+180,(IF(AND(E147<0,E150<0),E152,E152))))) -> 36.63594127
D158: ZÄHLER | E158: =SIN(RADIANS(E98))*SIN(RADIANS(E142)) -> 0.2826904993
D159: NENNER | E159: =COS(RADIANS(E142)) -> -0.7510002305
E161: =E158/E159 -> -0.3764186585
E163: =DEGREES(ATAN(E161)) -> -20.6272739
E165: =IF(AND(E158<0,E161>0),E163-180,(IF(AND(E158>0,E161<0),E163+180,(IF(AND(E158<0,E161<0),E163,E163))))) -> 159.3727261
E167: =E135+E165 -> 135
D169: l= | E169: =IF(AND(E167>180),E167-360,(IF(AND(E167<-180),E167+360,E167))) -> 135
C173: Um den Punkt a mit der Distanz X vom Start zu finden setze s = s01 + d/R
C175: Sigma (s) | E175: =E114+360*H6/K30 -> 57.95767772 | G175: σ = σ01 + d/R
B178: Beliebiger Punkt auf der Strecke mit d= | E178: =H6 -> 0 | F178: km
D180: ZÄHLER | E180: =COS(RADIANS(E100))*SIN(RADIANS(E175)) -> 0.7660444431
D181: NENNER | E181: =SQRT(COS(RADIANS(E175))^2+SIN(RADIANS(E100))^2*SIN(RADIANS(E175))^2) -> 0.6427876097
D183: QUOTIENT | E183: =E180/E181 -> 1.191753593
D185: ARCTAN | E185: =DEGREES(ATAN(E183)) -> 50
D187: j= | E187: =IF(AND(E180<0,E183>0),E185-180,(IF(AND(E180>0,E183<0),E185+180,(IF(AND(E180<0,E183<0),E185,E185))))) -> 50
D191: ZÄHLER | E191: =SIN(RADIANS(E100))*SIN(RADIANS(E175)) -> 0.3629012809
D192: NENNER | E192: =COS(RADIANS(E175)) -> 0.5305455414
D194: QUOTIENT | E194: =E191/E192 -> 0.6840153249
D196: ARCTAN | E196: =DEGREES(ATAN(E194)) -> 34.3727261
E198: =IF(AND(E191<0,E194>0),E196-180,(IF(AND(E191>0,E194<0),E196+180,(IF(AND(E191<0,E194<0),E196,E196))))) -> 34.3727261 | G198: =IF(AND(E200>180),E200-360,IF(AND(E187<0),E200+360,E200)) -> 10
D200: l= | E200: =E135+E198 -> 10
D204: Kurswinkel a an Punkt a mit Distanz d
D205: a
D207: ZÄHLER | E207: =TAN(RADIANS(E100)) -> 0.4737339774
D208: NENNER | E208: =COS(RADIANS(E175)) -> 0.5305455414
D210: QUOTIENT | E210: =E207/E208 -> 0.8929185912
D212: ARCTAN | E212: =DEGREES(ATAN(E210)) -> 41.76225866
D214: a | E214: =IF(AND(E207<0,E210>0),E212-180,(IF(AND(E207>0,E210<0),E212+180,(IF(AND(E207<0,E210<0),E212,E212))))) -> 41.76225866
